bitfinex-derivatives/quotes_SOLF0:USTF0_20240920
["timestamp","ask_amount","ask_price","bid_price","bid_amount"]
[1726860916476,13.8903,146.61,146.57,10.48]
[1726860916676,13.8903,146.61,146.58,3.4108]
[1726860917283,3.4103,146.61,146.58,3.4108]
[1726860917887,13.89,146.62,146.59,3.4106]
[1726860918086,3.41,146.62,146.59,3.4106]
[1726860918586,3.4103,146.61,146.57,14.99896493]
[1726860918787,3.4103,146.61,146.57,10.48]
[1726860919585,3.4103,146.61,146.58,3.4107]
[1726860919889,13.8901,146.62,146.58,3.4107]
[1726860920383,13.8901,146.62,146.59,3.4106]
[1726860923091,10.48,146.61,146.54,4.51896493]
[1726860923294,10.48,146.59,146.55,14.99896493]
[1726860923498,10.48,146.59,146.55,10.48]
[1726860924092,13.8908,146.59,146.56,3.4112]
[1726860924395,10.48,146.59,146.56,3.4112]
[1726860924985,3.4105,146.6,146.57,3.411]
[1726860925700,10.48,146.64,146.59,10.48]
[1726860925903,10.48,146.66,146.61,10.48]
[1726860926197,3.4094,146.65,146.62,3.4098]
[1726860926497,13.8894,146.65,146.62,3.4098]
[1726860926997,10.48,146.63,146.57,15.00341618]
[1726860927197,10.48,146.63,146.57,10.48]
[1726860927390,13.8899,146.63,146.57,10.48]
[1726860927997,13.8899,146.63,146.58,4.52151432]
[1726860928192,10.48,146.63,146.58,4.52151432]
[1726860928397,3.41,146.62,146.58,4.52151432]
[1726860928703,3.41,146.62,146.59,3.4105]
[1726860928903,13.8898,146.63,146.59,3.4105]
[1726860929794,3.4096,146.64,146.61,3.41]
[1726860930192,3.4097,146.64,146.6,3.4103]
[1726860930392,20.4886,146.67,146.6,3.4103]
[1726860930702,16.37,146.65,146.6,3.4103]
[1726860931001,3.41,146.62,146.6,3.4103]
[1726860931500,3.4098,146.63,146.6,3.4103]
[1726860933599,3.41,146.62,146.6,3.4103]
[1726860933997,16.37,146.65,146.6,3.4103]
[1726860934397,3.4098,146.63,146.6,3.4103]
[1726860935901,3.46145463,146.63,146.59,3.4106]
[1726860936102,16.37,146.65,146.58,4.52668643]
[1726860936302,16.37,146.65,146.56,16.37]
[1726860936495,16.37,146.65,146.57,4.52696596]
[1726860936697,16.37,146.65,146.56,16.37]
[1726860936896,16.37,146.65,146.57,4.52845707]
[1726860937110,3.4101,146.62,146.59,3.4105]
[1726860939301,3.4098,146.63,146.6,3.4103]
[1726860939502,16.37,146.65,146.56,16.37]
[1726860939804,3.4097,146.64,146.61,3.41]
[1726860940106,16.37,146.65,146.61,3.41]
[1726860940303,20.4886,146.67,146.58,16.37]
[1726860940902,20.4886,146.67,146.59,4.52737141]
[1726860941203,3.4094,146.65,146.62,3.4098]
[1726860942098,3.4096,146.64,146.62,3.4098]
[1726860944099,4.1186,146.67,146.63,3.4096]
[1726860944415,4.1186,146.67,146.6,16.37]
[1726860944416,4.23756572,146.68,146.64,16.37]
[1726860944702,4.23756572,146.68,146.67,3.4088]
[1726860945696,4.23756572,146.68,146.67,19.7788]
[1726860946902,4.23756572,146.68,146.67,24.29974931]
[1726860947097,12.18054772,146.74,146.67,37.26094931]
[1726860947306,12.18054772,146.74,146.68,7.30033358]
[1726860947602,12.18054772,146.74,146.71,16.37]
[1726860947797,12.18054772,146.74,146.71,19.7779]
[1726860948505,12.18054772,146.74,146.73,3.4074]
[1726860949203,12.18054772,146.74,146.73,19.7774]
[1726860950303,12.18054772,146.74,146.73,3.4074]
[1726860953601,12.18054772,146.74,146.69,17.6996]
[1726860953998,12.18054772,146.74,146.69,1.3296]
[1726860954200,12.18054772,146.74,146.65,16.37]
[1726860954603,3.4075,146.73,146.69,3.4082]
[1726860954804,12.18054772,146.74,146.68,3.46428485]
[1726860955212,12.18054772,146.74,146.71,3.4077]
[1726860955404,12.18054772,146.74,146.67,16.37]
[1726860955710,12.18054772,146.74,146.67,19.75524137]
[1726860955910,15.58784772,146.74,146.71,3.4078]
[1726860956100,12.18054772,146.74,146.71,3.4078]
[1726860956911,12.18054772,146.74,146.72,3.4075]
[1726860960912,12.18054772,146.74,146.73,3.4074]
[1726860963207,12.18054772,146.74,146.67,3.38524137]
[1726860963412,3.4076,146.73,146.68,20.85525558]
[1726860963805,3.4076,146.73,146.7,3.4081]
[1726860964910,15.58784772,146.74,146.7,3.4081]
[1726860965612,3.4075,146.73,146.67,16.37]
[1726860966219,3.4075,146.73,146.7,3.4081]
[1726860968023,3.4077,146.72,146.69,3.4083]
[1726860968219,12.18054772,146.74,146.69,3.4083]
[1726860968923,3.4076,146.73,146.69,3.4083]
[1726860969120,3.4076,146.73,146.7,3.4081]
[1726860969725,12.18054772,146.74,146.69,500.0]
[1726860970222,15.58774772,146.74,146.71,3.4079]
[1726860974921,15.58774772,146.74,146.71,503.4079]
[1726860975118,12.18054772,146.74,146.71,510.48]
[1726860975726,12.18054772,146.74,146.73,13.8874]
[1726860981236,9.65004772,146.74,146.73,13.8874]
[1726860981738,7.32841715,146.76,146.75,3.4069]
[1726860981937,1.02011684,146.78,146.75,10.48]
[1726860982238,4.34747325,146.8,146.79,3.406]
[1726860982437,11.66025966,146.84,146.79,10.48]
[1726860982633,11.66025966,146.84,146.74,6.831]
[1726860982634,11.66025966,146.84,146.81,10.48]
[1726860982830,11.66025966,146.84,146.81,13.8855]
[1726860984037,11.66025966,146.84,146.77,16.35]
[1726860984339,3.4051,146.83,146.79,3.4059]
[1726860984540,4.7444,146.83,146.79,3.4059]
[1726860986036,4.7444,146.83,146.8,3.4058]
[1726860986037,1.3393,146.83,146.8,3.4058]
[1726860987237,1.3393,146.83,146.77,16.35]
[1726860987238,8.66025966,146.84,146.81,16.35]
[1726860987631,8.66025966,146.84,146.79,16.35]
[1726860988026,8.66025966,146.84,146.77,16.35]
[1726860988543,1.3327,146.83,146.77,16.35]
[1726860988743,4.7379,146.83,146.78,3.4061]
[1726860989143,1.3327,146.83,146.78,3.4061]
[1726860989328,1.3327,146.83,146.79,3.406]
[1726860990041,1.3327,146.83,146.78,3.4062]
[1726860990337,4.7379,146.83,146.78,3.4062]
[1726860990540,1.3327,146.83,146.75,16.35]
[1726860990736,1.3327,146.83,146.77,3.4062]
[1726860991037,3.4053,146.82,146.77,3.4062]
[1726860991433,2.8214,146.81,146.77,3.4062]
[1726860991840,6.2269,146.81,146.76,3.4066]
[1726860992236,2.8214,146.81,146.73,16.35]
[1726860992537,2.8214,146.81,146.77,3.4064]
[1726860993141,6.2269,146.81,146.77,3.4064]
[1726860997942,6.2269,146.81,146.78,3.4062]
[1726861001845,16.35,146.8,146.75,3.4068]
[1726861002043,16.35,146.8,146.71,500.0]
[1726861002244,16.35,146.78,146.71,500.0]
[1726861002451,1.3903,146.77,146.71,500.0]
[1726861002855,2.8214,146.81,146.71,516.35]
[1726861003039,4.2117,146.81,146.71,516.35]
[1726861003240,4.2117,146.81,146.78,3.4062]
[1726861003550,4.2117,146.81,146.73,16.35]
[1726861003751,3.4059,146.8,146.76,3.4066]
[1726861004653,20.5617,146.81,146.75,3.4068]
[1726861004849,20.5617,146.81,146.71,516.35]
[1726861005045,16.35,146.79,146.71,516.35]
[1726861005255,3.4064,146.78,146.75,3.4068]
[1726861005452,20.5617,146.81,146.71,516.35]
[1726861005655,3.4061,146.79,146.76,3.4066]
[1726861006158,10.47,146.78,146.76,3.4066]
[1726861007854,13.8763,146.78,146.76,3.4066]
[1726861008364,13.8763,146.78,146.73,10.47]
[1726861008761,13.8763,146.78,146.75,3.4068]
[1726861009655,13.8763,146.78,146.76,3.4067]
[1726861012265,10.47,146.77,146.71,500.0]
[1726861012556,10.47,146.75,146.71,500.0]
[1726861012763,11.8807,146.76,146.71,510.47]
[1726861013261,15.2874,146.76,146.73,3.4072]
[1726861013458,15.2874,146.76,146.71,510.47]
[1726861013962,15.2874,146.76,146.74,3.4071]
[1726861014654,10.47,146.75,146.73,3.4073]
[1726861015251,13.8771,146.75,146.72,3.4075]
[1726861015457,10.47,146.73,146.71,500.0]
[1726861016767,13.8776,146.73,146.71,503.4077]
[1726861017464,13.8776,146.73,146.71,500.0]
[1726861017672,10.47,146.73,146.71,500.0]
[1726861018160,13.8775,146.73,146.71,500.0]
[1726861018666,10.47,146.73,146.71,503.4077]
[1726861019069,10.47,146.73,146.72,3.4076]
[1726861019365,13.2644,146.75,146.71,500.0]
[1726861019967,13.2644,146.75,146.73,3.4072]
[1726861021072,10.47,146.74,146.72,3.4075]
[1726861021263,10.47,146.74,146.71,500.0]
[1726861021568,13.83151066,146.74,146.71,500.0]
[1726861021769,10.47,146.72,146.71,503.4077]
[1726861024060,6.76881066,146.74,146.71,503.4077]
[1726861026574,3.4075,146.73,146.71,503.4077]
[1726861027973,6.76881066,146.74,146.71,503.4077]
[1726861028859,3.4073,146.74,146.71,503.4077]
[1726861029066,22.5715,146.75,146.72,3.4075]
[1726861030370,19.1644,146.75,146.71,503.4078]
[1726861031775,3.4074,146.73,146.71,503.4078]
[1726861032475,19.1644,146.75,146.71,500.0]
[1726861033282,22.5715,146.75,146.72,3.4074]
[1726861033476,19.1644,146.75,146.72,3.4074]
[1726861033872,3.4073,146.74,146.72,3.4074]
[1726861036476,3.4073,146.74,146.72,503.4074]
[1726861039484,3.4074,146.73,146.72,500.0]
[1726861043989,13.8774,146.73,146.72,500.0]
[1726861050979,13.8774,146.73,146.72,421.73]
[1726861051398,34.3874,146.73,146.72,371.87318431]
[1726861051689,44.56098382,146.73,146.72,354.38798431]
[1726861052091,45.73227547,146.73,146.72,354.38798431]
[1726861052481,44.56098382,146.73,146.72,354.38798431]
[1726861052691,42.37351509,146.73,146.72,351.38798431]
[1726861052990,42.37351509,146.73,146.72,347.59548431]
[1726861053187,45.80626442,146.73,146.72,347.59548431]
[1726861053891,42.37351509,146.73,146.72,265.92548431]
[1726861054090,45.78437298,146.73,146.72,265.92548431]
[1726861054293,45.78437298,146.73,146.72,248.46548431]
[1726861055588,37.79825789,146.73,146.72,248.46548431]
[1726861055790,17.28825789,146.73,146.72,248.46548431]
[1726861059193,20.46,146.8,146.72,248.46548431]
[1726861059496,10.47,146.74,146.72,248.46548431]
[1726861060498,10.47,146.74,146.73,3.4074]
[1726861060700,3.4068,146.76,146.73,3.4074]
[1726861060897,3.4065,146.77,146.74,3.4069]
[1726861061201,10.47,146.76,146.74,3.4069]
[1726861062701,13.8767,146.76,146.74,3.4069]
[1726861062895,10.47,146.75,146.73,3.4073]
[1726861063597,10.47,146.74,146.72,249.84018431]
[1726861063802,10.47,146.73,146.72,249.84018431]
[1726861064591,13.8772,146.74,146.72,249.84018431]
[1726861065607,3.4074,146.73,146.72,249.84018431]
[1726861065899,13.8774,146.73,146.72,249.84018431]
[1726861072409,3.4074,146.73,146.72,249.84018431]
[1726861076210,3.4072,146.74,146.72,249.84018431]
[1726861076508,10.47,146.75,146.72,249.84018431]
[1726861077114,10.47,146.77,146.72,260.31018431]
[1726861077613,10.47,146.77,146.74,3.407]
[1726861077814,13.94592725,146.77,146.74,3.407]
[1726861078409,3.4067,146.76,146.74,3.407]
[1726861078609,10.47,146.76,146.73,3.4073]
[1726861079005,3.4069,146.75,146.73,3.4073]
[1726861081407,13.8768,146.76,146.73,3.4073]
[1726861086516,3.4071,146.75,146.73,3.4073]
[1726861087212,3.4072,146.74,146.72,4.7822]
[1726861089208,13.8771,146.75,146.72,4.7822]
[1726861090109,3.47592725,146.77,146.72,4.7822]
[1726861090110,3.47592725,146.77,146.72,1.3747]
[1726861090307,10.47,146.78,146.73,10.47]
[1726861090515,3.32322268,146.77,146.73,10.47]
[1726861090719,0.16453025,146.86,146.72,1.3747]
[1726861090720,10.47,146.74,146.72,1.3747]
[1726861091115,10.47,146.74,146.72,4.7822]
[1726861091721,13.8772,146.74,146.72,4.7822]
[1726861092021,10.47,146.74,146.72,4.7822]
[1726861093819,3.4068,146.76,146.72,11.8447]
[1726861094022,3.35287301,146.78,146.73,10.47]
[1726861094225,10.47,146.78,146.73,10.47]
[1726861094524,13.79492672,146.79,146.72,1.3747]
[1726861094823,13.79492672,146.79,146.74,10.47]
[1726861095418,3.4064,146.78,146.75,3.4068]
[1726861095921,3.4067,146.76,146.73,3.4072]
[1726861096124,3.4067,146.76,146.72,1.3747]
[1726861096318,10.47,146.77,146.72,11.8447]
[1726861096516,13.8765,146.77,146.74,3.407]
[1726861097116,3.4065,146.77,146.72,11.8447]
[1726861097723,0.16453025,146.86,146.76,10.47]
[1726861098028,10.47,146.83,146.78,10.47]
[1726861098222,13.8752,146.83,146.8,3.4056]
[1726861098422,10.47,146.83,146.78,10.47]
[1726861098621,3.4054,146.82,146.79,3.4059]
[1726861098816,3.4054,146.82,146.78,10.47]
[1726861099015,0.16453025,146.86,146.78,10.47]
[1726861099217,13.8752,146.83,146.8,3.4056]
[1726861099823,10.47,146.82,146.8,3.4056]
[1726861100124,13.8753,146.82,146.8,3.4056]
[1726861100426,13.8753,146.82,146.79,3.4059]
[1726861101432,10.47,146.82,146.79,3.4059]
[1726861101831,10.47,146.83,146.8,3.4057]
[1726861102033,13.8753,146.83,146.8,3.4057]
[1726861102621,10.47,146.83,146.79,3.4059]
[1726861102932,10.47,146.8,146.77,4.1369]
[1726861103231,13.8762,146.78,146.77,4.1369]
[1726861103418,13.8762,146.78,146.77,2.7695]
[1726861106423,8.66025966,146.84,146.77,2.7695]
[1726861106635,10.47,146.81,146.77,2.7695]
[1726861107433,3.4058,146.8,146.77,6.1759]
[1726861107630,13.8758,146.8,146.77,6.1759]
[1726861107927,10.47,146.81,146.77,13.2395]
[1726861108131,13.8756,146.81,146.79,3.4059]
[1726861108523,10.47,146.82,146.79,3.4059]
[1726861108831,13.8753,146.82,146.79,3.4059]
[1726861114026,8.66025966,146.84,146.79,10.47]
[1726861114335,8.66025966,146.84,146.8,10.47]
[1726861114532,8.66025966,146.84,146.78,1.3554]
[1726861114533,8.66025966,146.84,146.82,10.47]
[1726861114932,4.37165966,146.84,146.83,13.8751]
[1726861115138,0.16453025,146.86,146.83,13.8751]
[1726861115139,0.16453025,146.86,146.83,10.47]
[1726861115329,0.16453025,146.86,146.85,10.47]
[1726861115635,15.10925364,146.88,146.85,10.47]
[1726861115826,15.10925364,146.88,146.87,3.4042]
[1726861117835,15.10925364,146.88,146.77,6.8126]
[1726861117836,25.57925364,146.88,146.77,6.8126]
[1726861118034,25.57925364,146.88,146.83,10.47]
[1726861118537,28.98335364,146.88,146.85,3.4046]
[1726861119942,18.51335364,146.88,146.85,3.4046]
[1726861120641,15.10925364,146.88,146.83,1.3615]
[1726861121144,15.10925364,146.88,146.83,4.7666]
[1726861121330,15.10925364,146.88,146.79,1.3226]
[1726861121331,16.34,146.87,146.79,1.3226]
[1726861121532,16.34,146.87,146.81,3.4054]
[1726861121533,3.405,146.84,146.81,3.4054]
[1726861122238,3.4047,146.85,146.8,16.34]
[1726861122843,16.34,146.87,146.79,2.6841]
[1726861123248,3.4047,146.85,146.79,2.6841]
[1726861123638,16.34,146.87,146.79,2.6841]
[1726861123943,16.34,146.87,146.81,3.4054]
[1726861124144,16.34,146.87,146.79,2.6841]
[1726861124447,3.4052,146.83,146.8,3.4056]
[1726861124834,3.4047,146.85,146.79,1.3615]
[1726861125044,16.34,146.85,146.79,4.7675]
[1726861125641,3.4054,146.82,146.79,4.7675]
[1726861127150,16.34,146.87,146.79,1.3615]
[1726861127550,3.4047,146.85,146.82,3.4052]
[1726861128159,31.44925364,146.88,146.83,3.405]
[1726861128454,31.44925364,146.88,146.79,17.7015]
[1726861129043,3.4048,146.85,146.82,3.4052]
[1726861129347,16.34,146.87,146.79,1.3615]
[1726861129548,3.4051,146.83,146.79,1.3615]
[1726861129746,16.34,146.87,146.79,1.3615]
[1726861130352,3.4053,146.83,146.8,3.4056]
[1726861132151,3.4053,146.83,146.81,3.4055]
[1726861132349,3.4049,146.84,146.79,1.3615]
[1726861132858,16.34,146.87,146.79,1.3615]
[1726861133047,15.10925364,146.88,146.79,17.7015]
[1726861133548,3.4046,146.86,146.79,17.7015]
[1726861133948,3.4046,146.86,146.8,1.3735]
[1726861134144,15.10925364,146.88,146.8,1.3735]
[1726861134354,15.10925364,146.88,146.81,16.34]
[1726861134661,18.51325364,146.88,146.81,16.34]
[1726861134954,15.10925364,146.88,146.81,17.7427]
[1726861135159,3.4044,146.87,146.81,17.7427]
[1726861135550,3.4044,146.87,146.84,3.4047]
[1726861136059,3.4044,146.87,146.81,17.7427]
[1726861136753,3.4044,146.86,146.84,3.4047]
[1726861136953,15.10925364,146.88,146.84,3.4047]
[1726861137149,15.10925364,146.88,146.81,17.7427]
[1726861137355,3.4042,146.87,146.85,3.4046]
[1726861139253,3.4042,146.87,146.84,3.4047]
[1726861139458,15.10925364,146.88,146.81,17.7427]
[1726861139659,31.44925364,146.88,146.8,1.3735]
[1726861139856,3.405,146.84,146.79,17.7015]
[1726861140156,10.46,146.86,146.81,10.46]
[1726861140351,10.46,146.87,146.84,3.4047]
[1726861140659,3.4045,146.86,146.84,3.4047]
[1726861141062,3.4045,146.86,146.83,3.405]
[1726861141462,3.4045,146.86,146.82,10.46]
[1726861141657,10.46,146.87,146.83,10.46]
[1726861141658,3.4042,146.87,146.83,10.46]
[1726861141967,25.56925364,146.88,146.83,10.46]
[1726861142261,25.56925364,146.88,146.79,1.3615]
[1726861142262,15.10925364,146.88,146.85,10.46]
[1726861142452,15.10925364,146.88,146.86,10.46]
[1726861142851,15.10925364,146.88,146.87,3.4042]
[1726861143360,15.10925364,146.88,146.87,13.8642]
[1726861143966,15.10925364,146.88,146.87,3.4042]
[1726861146366,15.10925364,146.88,146.87,19.7342]
[1726861148067,10.82105364,146.88,146.87,19.7342]
[1726861149168,9.88353711,146.9,146.89,3.4037]
[1726861150566,9.88353711,146.9,146.85,1.41]
[1726861150758,9.88353711,146.9,146.88,16.33]
[1726861151564,9.88353711,146.9,146.89,3.4037]
[1726861163083,14.86230075,146.92,146.91,3.4032]
[1726861163380,14.86230075,146.92,146.91,19.7332]
[1726861163780,14.86230075,146.92,146.91,23.11372354]
[1726861164177,14.86230075,146.92,146.91,10.46]
[1726861164878,14.86230075,146.92,146.91,13.8632]
[1726861167388,14.86230075,146.92,146.91,10.46]
[1726861168777,14.86230075,146.92,146.9,10.46]
[1726861169082,14.86230075,146.92,146.89,10.46]
[1726861169975,3.4035,146.9,146.83,136.12]
[1726861170182,16.27420075,146.92,146.88,10.46]
[1726861170483,3.4033,146.91,146.88,13.8639]
[1726861170672,3.4033,146.91,146.89,10.46]
[1726861170877,16.27420075,146.92,146.9,10.46]
[1726861171181,3.4032,146.91,146.9,10.46]
[1726861171985,3.4032,146.91,146.89,10.46]
[1726861172186,16.27420075,146.92,146.89,10.46]
[1726861172883,3.4033,146.91,146.89,10.46]
[1726861173078,3.4033,146.91,146.89,13.8637]
[1726861173587,3.4035,146.9,146.89,10.46]
[1726861173887,16.27420075,146.92,146.89,10.46]
[1726861174183,3.4033,146.91,146.89,10.46]
[1726861174978,3.4033,146.91,146.83,136.12]
[1726861174979,10.46,146.91,146.83,136.12]
[1726861175183,10.46,146.91,146.86,10.46]
[1726861175388,10.46,146.91,146.87,10.46]
[1726861175774,3.4037,146.89,146.87,10.46]
[1726861178982,3.4036,146.9,146.88,10.46]
[1726861179387,16.27420075,146.92,146.89,10.46]
[1726861179690,19.67730075,146.92,146.89,13.8636]
[1726861180290,16.27420075,146.92,146.91,13.8632]
[1726861181288,16.27420075,146.92,146.91,10.46]
[1726861183793,16.27420075,146.92,146.91,13.8632]
[1726861183991,14.86230075,146.92,146.91,13.8632]
[1726861187189,14.86230075,146.92,146.91,10.46]
[1726861187396,14.86230075,146.92,146.9,10.46]
[1726861188785,14.86230075,146.92,146.9,13.8634]
[1726861189595,14.86230075,146.92,146.91,10.46]
[1726861191100,14.86230075,146.92,146.91,13.8632]
[1726861192394,14.86230075,146.92,146.91,10.46]
[1726861193401,14.86230075,146.92,146.91,13.8632]
[1726861205906,18.26530075,146.92,146.9,6.19631117]
[1726861206107,18.26530075,146.92,146.84,136.12]
[1726861206108,10.46,146.91,146.89,4.5094693]
[1726861206294,10.46,146.9,146.89,0.2238693]
[1726861206501,1.4126,146.91,146.82,10.46]
[1726861206694,10.46,146.86,146.81,10.46]
[1726861206895,10.46,146.86,146.8,10.46]
[1726861207202,3.405,146.84,146.8,13.8657]
[1726861207604,10.46,146.86,146.8,10.46]
[1726861207995,3.4048,146.85,146.81,3.4054]
[1726861209210,3.4048,146.85,146.82,13.8653]
[1726861210307,10.46,146.88,146.83,10.46]
[1726861210708,3.4043,146.87,146.83,13.8649]
[1726861211520,3.404,146.88,146.84,10.46]
[1726861211806,10.46,146.89,146.84,10.46]
[1726861212215,3.404,146.88,146.85,3.4045]
[1726861213412,10.46,146.88,146.84,3.4047]
[1726861213613,10.46,146.88,146.83,10.46]
[1726861213809,14.583,146.91,146.86,10.46]
[1726861214001,10.46,146.9,146.86,10.46]
[1726861214201,10.46,146.9,146.85,10.46]
[1726861214415,10.46,146.88,146.84,10.46]
[1726861214601,10.46,146.87,146.84,10.46]
[1726861214907,13.8643,146.87,146.84,13.8646]
[1726861215310,13.864,146.88,146.85,3.4046]
[1726861215514,10.46,146.88,146.83,10.46]
[1726861216515,3.4043,146.87,146.84,3.4047]
[1726861217514,13.864,146.88,146.85,3.4046]
[1726861218020,14.583,146.91,146.87,10.46]
[1726861218620,17.9865,146.91,146.87,13.864]
[1726861218826,17.9865,146.91,146.87,10.46]
[1726861219023,15.2761,146.91,146.87,10.46]
[1726861219214,15.2761,146.91,146.88,3.4038]
[1726861219415,3.4035,146.9,146.87,10.46]
[1726861219917,10.46,146.9,146.87,3.404]
[1726861220218,10.46,146.89,146.84,10.46]
[1726861220713,3.4039,146.88,146.84,10.46]
[1726861220914,3.4039,146.88,146.85,3.4044]
[1726861221423,3.4039,146.88,146.84,10.46]
[1726861221625,13.8638,146.89,146.86,3.4044]
[1726861222916,10.46,146.89,146.86,3.4044]
[1726861223117,3.4039,146.88,146.86,3.4044]
[1726861224714,3.4039,146.88,146.85,13.8645]
[1726861225215,3.4042,146.87,146.84,13.8647]
[1726861225421,10.46,146.87,146.84,3.4047]
[1726861226127,3.4044,146.86,146.83,13.865]
[1726861226619,13.8642,146.87,146.84,3.4047]
[1726861227216,13.8642,146.87,146.84,13.8647]
[1726861227417,13.8642,146.87,146.84,3.4047]
[1726861227728,10.46,146.86,146.83,3.4049]
[1726861228718,10.46,146.87,146.83,10.46]
[1726861229317,13.8642,146.87,146.84,3.4047]
[1726861229815,2.6829,146.89,146.85,10.46]
[1726861230015,11.8726,146.91,146.86,10.46]
[1726861230626,3.4035,146.9,146.87,3.404]
[1726861230818,11.8726,146.91,146.85,10.46]
[1726861231215,3.4038,146.89,146.86,3.4043]
[1726861231625,3.4038,146.89,146.87,3.4041]
[1726861232026,3.4035,146.9,146.87,3.4041]
[1726861232233,11.8726,146.91,146.87,3.4041]
[1726861232528,3.4037,146.89,146.87,3.4041]
[1726861232923,10.46,146.89,146.85,10.46]
[1726861233122,10.46,146.89,146.84,10.46]
[1726861233327,10.46,146.87,146.84,10.46]
[1726861233624,10.46,146.87,146.84,13.8647]
[1726861234121,13.8643,146.87,146.84,10.46]
[1726861234820,13.8643,146.87,146.85,3.4045]
[1726861235223,3.4043,146.87,146.85,3.4045]
[1726861236619,3.4043,146.87,146.84,13.8648]
[1726861236820,3.4044,146.86,146.84,13.8648]
[1726861237032,10.46,146.88,146.84,13.8648]
[1726861237725,3.4043,146.87,146.84,13.8648]
[1726861239825,10.46,146.88,146.84,10.46]
[1726861240032,1.3281,146.89,146.85,10.46]
[1726861240329,1.3281,146.89,146.87,3.404]
[1726861240531,11.8726,146.91,146.86,10.46]
[1726861241541,15.2759,146.91,146.86,10.46]
[1726861241830,3.4035,146.9,146.88,3.4038]
[1726861242223,11.8726,146.91,146.88,3.4038]
[1726861242829,3.4035,146.9,146.88,3.4038]
[1726861245828,3.4037,146.89,146.87,3.404]
[1726861246026,10.46,146.9,146.83,2.6465]
[1726861246225,10.46,146.9,146.85,10.46]
[1726861247731,1.4126,146.91,146.86,10.46]
[1726861248025,11.8726,146.91,146.86,10.46]
[1726861248229,15.2759,146.91,146.89,3.4037]
[1726861254125,1.3568,146.94,146.87,10.46]
[1726861254325,1.3823,146.95,146.91,13.8632]
[1726861254326,1.327,146.95,146.91,13.8632]
[1726861254538,14.93185395,146.96,146.91,13.8632]
[1726861254539,25.39185395,146.96,146.91,13.8632]
[1726861254740,28.79405395,146.96,146.91,13.8632]
[1726861255434,18.33405395,146.96,146.91,13.8632]
[1726861257838,14.93185395,146.96,146.91,13.8632]
[1726861258936,18.33395395,146.96,146.91,13.8632]
[1726861259337,10.46,146.95,146.9,3.4033]
[1726861259536,10.46,146.95,146.89,10.46]
[1726861259940,3.4027,146.94,146.9,3.4033]
[1726861260143,3.4027,146.94,146.89,10.46]
[1726861260549,3.4024,146.95,146.91,13.8632]
[1726861260842,14.93185395,146.96,146.91,13.8632]
[1726861262547,25.39185395,146.96,146.91,13.8632]
[1726861262737,14.93185395,146.96,146.91,13.8632]
[1726861263549,25.39185395,146.96,146.91,13.8632]
[1726861263845,3.4025,146.95,146.91,3.4032]
[1726861264238,25.39185395,146.96,146.91,13.8632]
[1726861265339,14.93185395,146.96,146.91,13.8632]
[1726861265849,18.33405395,146.96,146.91,13.8632]
[1726861266244,14.93185395,146.96,146.91,13.8632]
[1726861268145,18.33405395,146.96,146.91,13.8632]
[1726861269456,3.4023,146.95,146.91,13.8632]
[1726861271053,18.33405395,146.96,146.91,13.8632]
[1726861275252,18.33405395,146.96,146.91,10.46]
[1726861275253,14.93185395,146.96,146.91,10.46]
[1726861275452,1.7788343,146.98,146.92,4.1973]